{"text_format":"1","workbook":"xlsx","n_sheets":6,"sheets":["1. Anbaudiversifizierung","2. Erhalt von Dauergrünland","3. Ökologisch wertvolle Fläche","4. Zusammenfassung","Anrechenbare Elemente zur ökoFl","Anpassung der ökoFl"],"not_rendered":{"charts":5,"images":6,"macros":1,"external_links":0,"defined_names":14,"comments":5,"pivot_tables":0},"unopened":[],"bounds":{"document_bytes":16777216,"sheet_cells":100000,"rows_first":2000,"rows_last":500,"rows_between":2000,"halvings":0,"cell_chars":16384,"cell_head_chars":4096},"cells_cut":0,"cells_raw":0,"read":"whole","date_system":"1900"}

{"sheet":"1. Anbaudiversifizierung","index":0,"n_rows":53,"n_cols":32,"rows_kept":53,"cut":false,"hidden":false,"merged":[[14,6,20,8],[23,6,25,9],[33,2,33,5],[32,1,32,5],[1,1,1,5],[15,1,15,5],[28,2,28,5],[17,1,17,5],[21,1,21,5],[27,1,27,5],[26,1,26,4],[31,1,31,5],[27,6,28,8],[3,7,6,9]]}
[]
[null,"Greening – Darstellung der Auflagen (konventionelle Bewirtschaftung)",null,null,null,null,null,null,null,null,null,null,null,null,null,null,null,null,null,null,null,"Feld aktiv","a",{"$f":"IF(B18=\" \",0,1)","v":0},null,"g",{"$f":"IF(B33=\" \",0,1)","v":0}]
[null,null,null,null,null,null,null,null,null,null,null,null,"Auswahlfeld Kulturen",null,null,null,"Auswahlfeld Ja Nein",null,null,null,null,null,"b",{"$f":"IF(B22=\" \",0,1)","v":0},null,"g2",{"$f":"IF(B34=\" \",0,1)","v":0}]
[null,null,null,null,null,null,null,{"$f":"IF(C12=0,\"Machen Sie bitte Angaben zu Ihrer landwirtschaftlichen Fläche\",\" \")","v":"Machen Sie bitte Angaben zu Ihrer landwirtschaftlichen Fläche"},null,null,null,null,0,1,2,">= 3","Angabe Bitte","Ja","Nein",null,null,null,"c",{"$f":"IF(G24=\"!! Sie müssen mindestens eine weitere Kultur anbauen. Die Hauptkultur darf hierbei maximal 75% der Ackerfläche in Anspruch nehmen !!\",G24,IF(W24=1,G24,0))","v":{"$error":"#DIV/0!"}},null,"g3",{"$f":"IF(C34=\" \",0,1)","v":0}]
[null,"Dauergrünland",0,"ha",null,{"$f":"IF(C5=0,0,1)","v":0},null,null,null,null,null,null,null,null,null,null,null,null,null,null,null,null,"d",{"$f":"IF(B28=\" \",0,1)","v":0},null,"e",{"$f":"IF(B35=\" \",0,1)","v":0}]
[]
[null,"Ackerfläche",0,"ha",{"$f":"Z24","v":" "},{"$f":"IF(C7=0,0,1)","v":0},null,null,null,null,null,null,null,null,null,null,null,null,null,null,null,null,"d2",{"$f":"IF(B29=\" \",0,1)","v":0}]
[null,"davon Feldfutter",0,"ha",{"$f":"IF(C7<C8,\"!! Ihre Feldfutterfläche > Ackerfläche!! \",\" \")","v":" "},{"$f":"IF(C8=0,0,1)","v":0},null,null,null,null,null,null,"Bedingung Flächentausch",null,null,null,null,null,null,null,null,null,"d3",{"$f":"IF(C29=\" \",0,1)","v":0}]
[]
[null,"Dauerkulturen (einschließlich Weinbauflächen)",0,"ha"]
[]
[null,"Gesamte landwirtschaftliche Fläche  ",{"$f":"C5+C7+C10","v":0},"ha",null,null,null,null,null,null,null,null,"Acker",{"$f":"IF(C7>10.001,1,0)","v":0}]
[null,null,null,null,null,null,null,null,null,null,null,null,"Ja/nein",{"$f":"IF(C20=\"Ja\",1,0)","v":0}]
[null,null,null,null,null,null,null,null,null,null,null,null,null,{"$f":"N13+N12","v":0}]
[null," ",null,null,null,null,{"$f":"IF(C7>10,N53,\" \")","v":" "},null,null,null,null,null,"Satz",{"$f":"IF(N14=2,\"Durch den Flächentausch  und den Kulturwechsel trifft die Anbaudiversifizierung für Sie nicht zu.\",\" \")","v":" "}]
[null,"Anbaudiversifizierung"]
[]
[null,{"$f":"IF(C12=0,\" \",IF(C7=0,\"Sie bewirtschaften keine Ackerfläche. Die Anbaudiversifizierung trifft für Sie nicht zu.\",IF(C7<10.001,\"Sie bewirtschaften nicht mehr als 10ha Ackerfläche. Die Anbaudiversifizierung trifft für Sie nicht zu.\",\" \")))","v":" "},null,null,null,null,null,null,null,null,null,null,"Bedingung 75% Dauergrünland LF",null,null,null,null,"< 30 ha 2 Hauptkulturen",null,null,null,">30 ha 3 Hauptkulturen",null,null,null,null,"Hinweistext 2 Kulturen",null,null,null,"Hinweistext 3 Kulturen"]
[null,null,null,null,null,null,null,null,null,null,null,null,"LNF",{"$f":"C12","v":0},"ha",null,null,"< 30 ha Acker",{"$f":"IF(C7>30,0,1)","v":1},null,null,">30 ha ",{"$f":"IF(C7>30,1,0)","v":0},null,null,null,"Bedingung 1",{"$f":"S19","v":1},null,null,"Bedingung 1",{"$f":"W19","v":0}]
[null,"> 50 %  der Ackerfläche wurde im Vorjahr nicht von mir bewirtschaftet + es hat ein Kulturwechsel stattgefunden","Angabe Bitte",null,null,null,null,null,null,null,null,null,"DG + FF",{"$f":"C8+C5","v":0},"ha",null,null,"2 Hauptkulturen",{"$f":"IF(C24=2,1,IF(C24=\">= 3\",1,0))","v":0},null,null,"DD + FF",{"$f":"IF(Q33>0,0,1)","v":{"$error":"#DIV/0!"}},null,null,null,"Bedingung 2",{"$f":"IF(C26=0,1,0)","v":1},null,null,"Bedingung 2",{"$f":"IF(C26=0,1,0)","v":1}]
[null,null,null,null,null,null,null,null,null,null,null,null,"(DG+FF)/LNF",{"$f":"(N20/N19)*100","v":{"$error":"#DIV/0!"}},"%",null,null,"Summe wenn nicht DD u FF",{"$f":"IF(Q33>0,0,(S19+S20))","v":{"$error":"#DIV/0!"}},null,null,"Summe",{"$f":"W19+W20","v":{"$error":"#DIV/0!"}},null,null,null,null,{"$f":"AB19+AB20","v":2},null,null,null,{"$f":"AF19+AF20","v":1}]
[null,{"$f":"IF(C7>10,IF(N14=2,N15,IF(N28=2,N30,IF(N41=1,N42,\" \"))),\" \")","v":" "},null,null,null,null,null,null,null,null,null,null,null,null,null,null,null,"Alarm wenn keine 2 Hauptkulturen",{"$f":"IF(S19>S20,\"!! Sie müssen mindestens eine weitere Kultur anbauen. Die Hauptkultur darf hierbei maximal 75% der Ackerfläche in Anspruch nehmen !!\",\"\")","v":"!! Sie müssen mindestens eine weitere Kultur anbauen. Die Hauptkultur darf hierbei maximal 75% der Ackerfläche in Anspruch nehmen !!"},null,null,"Erfüllt",{"$f":"IF(W21=2,1,0)","v":{"$error":"#DIV/0!"}},null,null,null,"TEXT",{"$f":"IF(AB21=2,\"Bitte geben Sie die Anbaufläche Ihrer Hauptkultur an\",\" \")","v":"Bitte geben Sie die Anbaufläche Ihrer Hauptkultur an"},null,null,"TEXT",{"$f":"IF(AF21=2,\"Bitte geben Sie die Anbaufläche ihrer Hauptkultur an\",\" \")","v":" "}]
[null,null,null,null,null,null,null,null,null,null,null,null,"Erfüllt ?",{"$f":"IF(N21>75,1,0)","v":{"$error":"#DIV/0!"}},null,null,null,"% Hauptkultur",{"$f":"(C26/C7)*100","v":{"$error":"#DIV/0!"}},"%",null,"Alarm wenn keine 3 Hauptkulturen",{"$f":"IF(C20=\"Ja\",0,IF(W22=1,IF(C24=\">= 3\",0,1),0))","v":{"$error":"#DIV/0!"}},null,null,null,null,null,null,null,"Bedingung 3",{"$f":"IF(C31 = 0,3,0)","v":3}]
[null,"Anzahl Kulturen (inklusive Feldfutter) auf der Ackerfläche",0,null,null,null,{"$f":"IF(C7=0,\" \",IF(W23=1,W24,IF(Q33<1,(IF(S19=1,S22,\" \")),\" \")))","v":" "},null,null,null,null,null,null,null,null,null,null,"Erfüllt",{"$f":"IF(S23>75,0,1)","v":{"$error":"#DIV/0!"}},null,null,"Satz",{"$f":"IF(W23=1,\"!! Sie  müssem 3 Kulturen anbauen. Die Hauptkultur darf hierbei maximal 75% und die erste und zweite Kultur nur 95% der Ackerfläche in Anspruch nehmen !!\",\" \")","v":{"$error":"#DIV/0!"}},null,"Alarm Hauptkulturen mehr Fläche als Acker",{"$f":" IF(C7 < (C26+C31),\"!! Fehler Ackerfläche zu gering !!\", \" \")","v":" "},null,null,null,null,null,{"$f":"AF19+AF23+AF20","v":4}]
[null,null,null,null,null,null,null,null,null,null,null,null,"AF - FF",{"$f":"C7-C8","v":0},"ha",null,null,"Satz",{"$f":"IF(S21=2,IF(S24=1,\"Sie erfüllen die Bedingungen zur Anbaudiversifizierung.\",\"Ihre Hauptkultur nimmt > 75 % der Ackerfläche in Anspruch. Diese muss reduziert werden auf:\"),\" \")","v":{"$error":"#DIV/0!"}},null,null,null,null,null,null,null,null,null,null,null,"TEXT",{"$f":"IF(AF24=4,\"Bitte geben Sie die Anbaufläche Ihrer zweiten Leitkultur an\",\" \")","v":"Bitte geben Sie die Anbaufläche Ihrer zweiten Leitkultur an"}]
[null,"Anbaufläche der Hauptkultur",0,"ha",null,null,null,null,null,null,null,null,"Ackerfläche nicht >30 ha",null,null,null,null,null,null,null,null,"% Hauptkultur",{"$f":"(C26/C7)*100","v":{"$error":"#DIV/0!"}},"%"]
[null,{"$f":"IF(C7=0,\" \",IF(AB21=2,AB22,IF(AF21=2,AF22,\" \")))","v":" "},null,null,null,null,null,null,null,null,null,null,"DD",{"$f":"IF(C5>0,1,0)","v":0},null,null,null,null,null,null,null,"Erfüllt, Alarm",{"$f":"IF(W19=1,IF(W26>75,1,0),0)","v":0}]
[null,{"$f":"IF(C7=0,\" \",IF(Q33=0,IF(S21=2,S25,\" \"),\" \"))","v":" "},null,null,null,null,{"$f":"M47","v":" "},null,null,null,null,null,"Summe",{"$f":"N23+N27","v":{"$error":"#DIV/0!"}},null,null,null,null,null,null,null,"% 1 +2 Kultur",{"$f":"((C26+C31)/C7)*100","v":{"$error":"#DIV/0!"}},"%"]
[null,{"$f":"IF(C7=0,\" \",IF(S21=2,IF(S23>75,C7*0.75,\" \"),\" \"))","v":" "},{"$f":"IF(C7=0,\" \",IF(S21=2,IF(S23>75,\"ha\",\"\"),\" \"))","v":" "},null,null,null,null,null,null,null,null,null,null,null,null,null,null,null,null,null,null,"Erfüllt, Alarm",{"$f":"IF(W28>95,1,0)","v":{"$error":"#DIV/0!"}},null,"Alles Ok",{"$f":"IF(W29=0,IF(C7>30,1,0),0)","v":{"$error":"#DIV/0!"}}]
[null,null,null,null,null,null,null,null,null,null,null,null,"Satz",{"$f":"IF(N28=2,\"> 75 % der landwirtschaftlichen Nutzfläche besteht aus Dauergrünland und Feldfutter, somit trifft die Anbaudiversifizierung für Sie nicht zu.\",\" \")","v":{"$error":"#DIV/0!"}}]
[null,"Anbaufläche der zweiten Leitkultur",0,"ha",null,null,null,null,null,null,null,null,null,null,null,null,null,null,null,null,null,"Alarm",{"$f":"IF(S21=2,\" \",IF(W27=1,\"Der Anteil Ihrer Hauptkultur an ihrer Ackerfläche beträgt  > 75 %. Diese muss reduziert werden auf:\",IF(W19=1,IF(W29=1,\"Der Anteil Ihrer ersten und zweiten Kultur beträgt > 95 % ihrer Ackerfläche, diese muss reduziert werden auf:\"))))","v":{"$error":"#DIV/0!"}}]
[null,{"$f":"IF(C7>30,AF25,\" \")","v":" "},null,null,null,null,null,null,null,null,null,null,"Bedingung 75% Feldfutter der AF",null,null,null,"Bedingung DD u FF",null,null,null,null,null,{"$f":"IF(W31=FALSE,\" \",IF(S21=2,\" \",IF(W27=1,(C7*0.75),IF(W29=1,(C7*0.95),\" \"))))","v":{"$error":"#DIV/0!"}}]
[null,{"$f":"IF(C12=0,\" \",IF(C7=0,\" \",IF(W31=FALSE,\" \",IF(C12=0,\" \",IF(N14=2,\" \",IF(C7=0,\" \",W31))))))","v":" "},null,null,null,null,null,null,null,null,null,null,null,null,null,null,{"$f":"N23+N36","v":{"$error":"#DIV/0!"}},null,null,null,null,"OK",{"$f":"IF(W19=1,IF(C26>0,IF(C31>0,IF(W23=0,IF(W27=0,IF(Z29=1,\"Aktuell halten Sie die gegebenen Verpflichtungen zu Anbaudiversifizierung ein.\",\" \"),\" \")))))","v":false}]
[null,{"$f":"IF(N14=2,\" \",IF(C7=0,\" \",W32))","v":" "},{"$f":"IF(B34=\" \",\" \",IF(S21=2,\" \",IF(W27=1,\"ha\",IF(W29=1,\"ha\",\" \"))))","v":" "},null,null,null,null,null,null,null,null,null,"FF/AF",{"$f":"(C8/C7)*100","v":{"$error":"#DIV/0!"}},"%"]
[null,{"$f":"IF(W33=FALSE,\" \",IF(W19=1,W33,\" \"))","v":" "}]
[null,null,null,null,null,null,null,null,null,null,null,null,"Erfüllt",{"$f":"IF(N34>75,1,0)","v":{"$error":"#DIV/0!"}}]
[]
[null,null,null,null,null,null,null,null,null,null,null,null,"AF - FF",{"$f":"C7-C8","v":0},"ha"]
[null,null,null,null,null,null,null,null,null,null,null,null,"Ackerfläche nicht >30 ha"]
[]
[null,null,null,null,null,null,null,null,null,null,null,null,"Summe",{"$f":"N36","v":{"$error":"#DIV/0!"}}]
[null,null,null,null,null,null,null,null,null,null,null,null,"Satz",{"$f":"IF(N41=1,\"> 75 % ihrer Ackfläche besteht aus Feldfutter, somit trifft die Andaudiversifizierung für Sie nicht zu\",\" \")","v":{"$error":"#DIV/0!"}}]
[]
[]
[]
[]
[null,null,null,null,null,null,null,null,null,null,null,null,{"$f":"IF(C31>C26,\"!! Ihre zweite Leitkultur hat eine grössere Anbaufläche als ihre Hauptkultur !!\", \" \")","v":" "}]
[]
[null,null,null,null,null,null,null,null,null,null,null,null,"Bedingung 75% Dauergrünland LF/Restacker > 30ha"]
[null,null,null,null,null,null,null,null,null,null,null,null,0.75,{"$f":"N23","v":{"$error":"#DIV/0!"}}]
[null,null,null,null,null,null,null,null,null,null,null,null,"Ackerfläche",{"$f":"IF(N38>30,1,3)","v":3}]
[null,null,null,null,null,null,null,null,null,null,null,null,"cumul",{"$f":"N51+N50","v":{"$error":"#DIV/0!"}}]
[null,null,null,null,null,null,null,null,null,null,null,null,null,{"$f":"IF(N52=2,\"Hinweis:                                         Mehr als 75 % Ihrer landwirtschaftlichen Nutzfläche besteht aus Dauergrünland und/oder Feldfutter.\",\" \")","v":{"$error":"#DIV/0!"}}]

{"sheet":"2. Erhalt von Dauergrünland","index":1,"n_rows":41,"n_cols":12,"rows_kept":41,"cut":false,"hidden":false,"merged":[[1,1,1,5],[18,1,18,4],[23,1,23,4],[15,5,16,7],[20,5,21,7]]}
[]
[null,"Greening – Darstellung der Auflagen (konventionelle Bewirtschaftung)"]
[null,null,null,null,null,null,null,null,null,null,"Sensibles DG",{"$f":"IF(C16=\"Ja\",1,IF(C16=\"Nein\",2,0))","v":0}]
[null,null,null,null,null,null,null,null,null,null,"Umgepflügt?",{"$f":"IF(C17=\"Ja\",1,IF(C17=\"Nein\",2,0))","v":0}]
[null,{"$f":"'1. Anbaudiversifizierung'!B5","v":"Dauergrünland"},{"$f":"'1. Anbaudiversifizierung'!C5","v":0},{"$f":"'1. Anbaudiversifizierung'!D5","v":"ha"},null,null,null,null,null,null,null,{"$f":"IF(L3=1,(L3+L4),0)","v":0}]
[null,null,null,null,null,null,null,null,null,null,"Text",{"$f":"IF(L3=0,\" \",IF(L5=1,\"Bitte geben Sie an ob das sensible Dauergrünland umgepflügt ist.\",IF(L5=2,\"Das sensible Dauergrünland muss unverzüglich in den ursprünglichen Zustand zurückgeführt werden.\",IF(L5=3,\"Das sensible Dauergrünland soll in dem gegebenen Zustand erhalten bleiben.\", \"\"))))","v":" "}]
[null,{"$f":"'1. Anbaudiversifizierung'!B7","v":"Ackerfläche"},{"$f":"'1. Anbaudiversifizierung'!C7","v":0},{"$f":"'1. Anbaudiversifizierung'!D7","v":"ha"}]
[null,{"$f":"'1. Anbaudiversifizierung'!B8","v":"davon Feldfutter"},{"$f":"'1. Anbaudiversifizierung'!C8","v":0},{"$f":"'1. Anbaudiversifizierung'!D8","v":"ha"}]
[null,null,null,null,null,null,null,null,null,null,"Text Umpflügen"]
[null,"Dauerkulturen",{"$f":"'1. Anbaudiversifizierung'!C10","v":0},"ha"]
[]
[null,{"$f":"'1. Anbaudiversifizierung'!B12","v":"Gesamte landwirtschaftliche Fläche  "},{"$f":"'1. Anbaudiversifizierung'!C12","v":0},{"$f":"'1. Anbaudiversifizierung'!D12","v":"ha"},null,null,null,null,null,null,"Angabe Bitte "]
[]
[null,"Erhalt von Dauergrünland"]
[]
[null,"Bewirtschaftung von sensiblem Dauergrünland?","Angabe Bitte",{"$f":"L3","v":0},null,{"$f":"L35","v":" "}]
[null,"Ist sensibles Dauergrünland umgebrochen?","Angabe Bitte",{"$f":"L4","v":0},null,null,null,null,null,null,"Dauergrünland umgepflügt?",{"$f":"IF(C21=\"Angabe Bitte\",-3,IF(C21=\"Ja\", 1,6))","v":-3}]
[null,null,null,null,null,null,null,null,null,null,"Genehmigung",{"$f":"IF(C22=\"Nein\",1,0)","v":0}]
[null,{"$f":"IF(C5=0,\" \",L6)","v":" "},null,null,null,null,null,null,null,null,null,{"$f":"L17+L18","v":-3}]
[null,null,null,null,null,null,null,null,null,null,null,{"$f":"IF(L19=2,\"Sie haben gegen die Auflagen verstoßen und müssen nachträglich eine Genehmigung beantragen (unbeschadet der Auflagen bei der Landschaftspflegeprämie).\",\" \")","v":" "}]
[null,"Wurde nicht sensibles Dauergrünland  umgebrochen?","Angabe Bitte",{"$f":"L17","v":-3},{"$f":"IF(C21=\"Angabe Bitte\",1,\" \")","v":1},{"$f":"L41","v":" "},null,null,null,null,"cumule",{"$f":"L5+L19","v":-3}]
[null,"Wurde dieses mit einer Genehmigung seitens des SER umgebrochen?","Angabe Bitte",{"$f":"IF(C22=\"Angabe Bitte\",-1,L18)","v":-1},null,null,null,null,null,null,"Alles Ok"]
[null,null,null,null,null,null,null,null,null,null,"Sensible DD"]
[null,{"$f":"IF(C12=0,\" \",IF(C5=0,\"Sie bewirtschaften zur Zeit kein Dauergrünland. Die Verpflichtung zum Erhalt des Dauergrünlandes trifft für Sie nicht zu.\",IF(D22=-1,\"!! Weitere Angabe notwendig!!\",IF(L17=6,\"Sie müssen keine weiteren Massnahmen tätigen, nur den Erhalt Ihres bestehenden Dauergrünlands gewähren.\",IF(L21=5,L20,IF(C5=0,\"Sie bewirtschaften zur Zeit kein Dauergrünland. Die Verpflichtung zum Erhalt des Dauergrünlandes trifft für Sie nicht zu.\",IF(L19=1,\"Sie müssen keine weiteren Massnahmen tätigen, nur den Erhalt Ihres bestehenden Dauergrünlands gewähren und die Bedingungen der Genehmigung einhalten.\",IF(L5=3,\" \",IF(L19=2,L20,IF(L17=6,\"Sie müssen keine weiteren Massnahmen tätigen, nur den Erhalt Ihres bestehenden Dauergrünlands gewähren.\"))))))))))","v":" "}]
[]
[null,null,null,null,null,null,null,null,null,null,{"$f":"IF(D22=-1,\"!! Weitere Angabe notwendig!!\",IF(L21=3,\" \",IF(L21=5,L20,IF(C5=0,\"Sie bewirtschaften zur Zeit kein Dauergrünland, die Verpflichtung zum Erhalt des Dauergrünlandes trifft für Sie nicht zu.\",IF(L5=3,\" \",IF(L19=2,L20,IF(L19=1,\"Sie müssen keine weitern Massnahmen tätigen, nur den Erhalt ihres bestehenden Dauergrünlandes gewähren.\",IF(L17=6,\"Sie müssen keine weitern Massnahmen tätigen, nur den Erhalt ihres bestehenden Dauergrünlandes gewähren.\"\" \"))))))))","v":"!! Weitere Angabe notwendig!!"}]
[]
[]
[]
[null,null,null,null,null,null,null,null,null,null,"Kontolle logische Antwort"]
[]
[null,null,null,null,null,null,null,null,null,null,"sensibles DG?",{"$f":"IF(C16=\"Nein\",1,0)","v":0}]
[null,null,null,null,null,null,null,null,null,null,"umgepflügt?",{"$f":"IF(C17=\"Ja\",1,0)","v":0}]
[null,null,null,null,null,null,null,null,null,null,"cumul",{"$f":"L32+L33","v":0}]
[null,null,null,null,null,null,null,null,null,null,"Satz",{"$f":"IF(L34=2,\"<<  !!Fehler, Angaben korrigieren!!\",\" \")","v":" "}]
[]
[]
[null,null,null,null,null,null,null,null,null,null,"DG umgepflügt?",{"$f":"IF(C21=\"Nein\",1,0)","v":0}]
[null,null,null,null,null,null,null,null,null,null,"genehmigt?",{"$f":"IF(C22=\"Ja\",1,0)","v":0}]
[null,null,null,null,null,null,null,null,null,null,"cumul",{"$f":"L38+L39","v":0}]
[null,null,null,null,null,null,null,null,null,null,"Satz",{"$f":"IF(L40=2,\"<<  !!Fehler, Angaben korrigieren!!\",\" \")","v":" "}]

{"sheet":"3. Ökologisch wertvolle Fläche","index":2,"n_rows":38,"n_cols":16,"rows_kept":38,"cut":false,"hidden":false,"merged":[[26,8,27,8],[26,7,27,7],[20,6,24,8],[1,1,1,5],[21,1,21,4],[22,2,22,4],[26,3,26,4],[24,1,24,4],[25,2,25,4]]}
[]
[null,"Greening – Darstellung der Auflagen (konventionelle Bewirtschaftung)"]
[null,null,null,null,null,null,null,null,null,null,"Acker?",{"$f":"IF(C5 > 1,0,)","v":0}]
[null,null,null,null,null,null,null,null,null,1,"Satz",{"$f":"IF(L3=1,\" Sie bewirtschaften keine Ackerfäche, somit trifft die Verpflichtung für ökologisch wertvolle Flächen für Sie nicht zu.\",0)","v":0}]
[null,{"$f":"'1. Anbaudiversifizierung'!B5","v":"Dauergrünland"},{"$f":"'1. Anbaudiversifizierung'!C5","v":0},{"$f":"'1. Anbaudiversifizierung'!D5","v":"ha"}]
[]
[null,{"$f":"'1. Anbaudiversifizierung'!B7","v":"Ackerfläche"},{"$f":"'1. Anbaudiversifizierung'!C7","v":0},{"$f":"'1. Anbaudiversifizierung'!D7","v":"ha"}]
[null,"davon Feldfutter",{"$f":"'1. Anbaudiversifizierung'!C8","v":0},{"$f":"'1. Anbaudiversifizierung'!D8","v":"ha"}]
[]
[null,"Dauerkulturen",{"$f":"'1. Anbaudiversifizierung'!C10","v":0},"ha"]
[null,null,null,null,null,null,null,null,null,null,"> 15 ha",{"$f":"IF(C7>15,0,1)","v":1}]
[null,{"$f":"'1. Anbaudiversifizierung'!B12","v":"Gesamte landwirtschaftliche Fläche  "},{"$f":"'1. Anbaudiversifizierung'!C12","v":0},{"$f":"'1. Anbaudiversifizierung'!D12","v":"ha"},null,null,null,null,null,1,"Satz",{"$f":"IF(L11=1,\"Ihre Ackerfläche =< 15 ha, somit trifft die Verpflichtung für ökologisch wertvolle Flächen für Sie nicht zu.\",0)","v":"Ihre Ackerfläche =< 15 ha, somit trifft die Verpflichtung für ökologisch wertvolle Flächen für Sie nicht zu."}]
[]
[null,"Ökologisch wertvolle Flächen"]
[null,null,null,null,null,null,null,null,null,null,"75% Grünland",{"$f":"IF('1. Anbaudiversifizierung'!N21 > 75,1,0)","v":{"$error":"#DIV/0!"}}]
[null,"Stillgelegte Fläche ohne Blüh-Bienenmischung",0,"ha",null,null,null,null,null,null,"<30 ha"]
[null,"Stillgelegte Fläche mit Blüh-Bienenmischung",0,"ha"]
[null,"Fläche Miscanthus/durchwachsener Silphie",0,"ha"]
[null,"Fläche Leguminosen/Legumiosen-Gras/Legumionsen-Getreide ohne PSM",0,"ha",null,null,null,null,null,null,null,{"$f":"L15","v":{"$error":"#DIV/0!"}}]
[null,"TOTAL Ökologisch wertvolle Flächen",{"$f":"C16+(C17*1.5)+(C18*0.7)+C19","v":0},"ha"]
[null,null,null,null,null,null,{"$f":"L38","v":" "},null,null,2,"Satz",{"$f":"IF(L19=1,\"Mehr als 75 % ihr landwirtschaftlichen Nutzfläche besteht aus Dauergrünland oder Feldfutter, somit  trifft die Verpflichtung für ökologisch wertvolle Flächen für Sie nicht zu.\",0)","v":{"$error":"#DIV/0!"}}]
[null,{"$f":"IF(C12=0,\" \",IF(L3=1,L4,IF(L11=1,L12,IF(L19=1,L21,IF(L29=1,L30,\"Sie benötigen mindestens 5 % ökologisch wertvolle Flächen auf Ihrer entsprechenden Ackerfläche, dies entspricht:\")))))","v":" "}]
[null,{"$f":"IF(C12=0,\" \",IF(L19=1,\" \",IF(L29=1,\" \",IF(L32=3,(C7*0.05),\" \"))))","v":" "},{"$f":"IF(C12=0,\" \",IF(L19=2,\" \",IF(L29=2,\" \",IF(L32=3,M33,\" \"))))","v":" "}]
[null,null,null,null,null,null,null,null,null,null,"AF",{"$f":"C7","v":0},"ha","Silll.+  Lego","Silll.",{"$f":"IF($C$7>10,IF(C16>0,1,0))","v":false}]
[null,{"$f":"IF(C7>15,IF(L29=2,\" \",IF(P26=2,\"Durch die stillgelegte Fläche und den Anbau von Miscanthus, Silphie oder Leguminosen haben Sie schon eine ökologisch wertvolle Fläche von:\",IF(C20>0,\"Durch die stillgelegte Fläche und den Anbau von Miscanthus, Silphie oder Leguminosen haben Sie schon eine ökologisch wertvolle Fläche von:\",\" \"))),\" \")","v":" "},null,null,null,null,null,null,null,null,"Lego+FF+Still",{"$f":"C8+C16+C19","v":0},"ha",null,"Lego.",{"$f":"IF($C$7>10,IF(C19>0,1,0))","v":false}]
[null,{"$f":"IF(C7>15,IF(L29=2,\" \",IF(P26=2,(C16+(C17*1.5)+(C18*0.7)+C19),IF(C20>0,C20, \" \"))),\" \")","v":" "},{"$f":"IF(C7>15,IF(L29=2,\" \",IF(P26=2,\"ha\",IF(C20>0,\"ha\", \" \"))),\" \")","v":" "},null,null,null,null,null,null,null,"Anteil LFS/AF",{"$f":"(L25/L24)*100","v":{"$error":"#DIV/0!"}},null,null,"Summe",{"$f":"P24+P25","v":0}]
[null,{"$f":"IF(C7>15,IF(L29=2,\" \",IF(P26=2,\"SALDO:\",IF(C20>0,\"SALDO:\",\"\"))),\" \")","v":" "},{"$f":"IF(C7>15,IF(L29=2,\" \",IF(P26=2,(B23-B26),IF(C20>0,(B23-B26), \" \"))),\" \")","v":" "},{"$f":"IF(C7>10,IF(L29=2,\" \",IF(P26=2,\"ha\",IF(C20>0,\"ha\",\"\"))),\" \")","v":" "},null,null,null,{"$f":"L37","v":" "},{"$f":"L37","v":" "},null,"Erfüllt",{"$f":"IF(L26>75,1,0)","v":{"$error":"#DIV/0!"}}]
[null,null,null,null,null,null,null,null,null,null,{"$f":"K16","v":"<30 ha"}]
[null,null,null,null,null,null,null,null,null,null,null,{"$f":"L27","v":{"$error":"#DIV/0!"}}]
[null,null,null,null,null,null,null,null,null,2,"Satz",{"$f":"IF(L29=1,\"> 75 % ihrer Ackerfläche ist Feldfutter und/oder stillgelegt und/oder mit Leguminosen eingesät, somit  trifft die Verpflichtung für ökologisch wertvolle Flächen für Sie nicht zu.\",0)","v":{"$error":"#DIV/0!"}}]
[null,null,null,null,null,null,null,null,null,null,"> 15 ha",{"$f":"IF(C7>15,1,0)","v":0}]
[null,null,null,null,null,null,null,null,null,null,"Ök. W. Fl.",{"$f":"IF(L3=0,IF(L11=0,IF(L14=0,IF(L31=1,3,0))))","v":false}]
[null,null,null,null,null,null,null,null,null,null,null,{"$f":"IF(L32=3,(C7*0.05),\" \")","v":" "},"ha "]
[]
[]
[]
[null,null,null,null,null,null,null,null,null,null,"ökofläche?",{"$f":"IF(B23=\" \",\" \",1)","v":" "}]
[null,null,null,null,null,null,null,null,null,null,"Hinweis",{"$f":"IF(L37=1,\"Hinweis:                                 Zur weiteren Berechnung der ökologisch wertvollen Fläche verwenden Sie bitte die Tabellenblätter: «Anrechenbare Elemente zur ökoFl» und «Anpassung der ökoFl».\",\" \")","v":" "}]

{"sheet":"4. Zusammenfassung","index":3,"n_rows":38,"n_cols":16,"rows_kept":38,"cut":false,"hidden":false,"merged":[[34,1,34,5],[36,1,36,5],[1,1,1,5],[20,1,20,5],[22,1,22,5],[26,1,26,5],[29,1,29,5],[31,1,31,5],[15,4,15,5],[17,4,17,5],[18,4,18,5],[15,8,16,8],[15,9,16,9],[22,7,26,9],[15,2,15,3],[16,2,16,3],[17,2,17,3],[18,2,18,3]]}
[]
[null,"Greening , anzuwendende Maßnahmen, bei einer konventionellen Bewirtschaftung"]
[]
[null,"Gesamte landwirtschaftliche Nutzfläche ",{"$f":"'1. Anbaudiversifizierung'!C12","v":0},"ha"]
[]
[null,"Ackerfläche",{"$f":"'1. Anbaudiversifizierung'!C7","v":0},"ha"]
[null,"Anzahl der angebauten Kulturen",{"$f":"'1. Anbaudiversifizierung'!C24","v":0},null,null,null,null,"Anteil an der Anbaufläche 1. + 2. Kultur",{"$f":"'1. Anbaudiversifizierung'!W28","v":{"$error":"#DIV/0!"}},"%"]
[null,"davon Feldfutter",{"$f":"'1. Anbaudiversifizierung'!C8","v":0},"ha",{"$f":"IF(C6<C8,\"!! Ihre Feldfutterfläche > Ackerfläche!! \",\" \")","v":" "},null,null,"Anteil an der Anbaufläche Hauptkultur",{"$f":"'1. Anbaudiversifizierung'!W26","v":{"$error":"#DIV/0!"}},"%",null,{"$f":"IF(C6=0,\"Keine Ackerfläche vorhanden\",\"1.Kultur (%)\" )","v":"Keine Ackerfläche vorhanden"},{"$f":"IF(C6=0,1,(100/$C$6)*O8)","v":1},null,{"$f":"IF(C6=0,\" \",'1. Anbaudiversifizierung'!C26)","v":" "}]
[null,"Stillgelegte Fläche ohne Blüh-Bienenmischung",{"$f":"'3. Ökologisch wertvolle Fläche'!C16","v":0},"ha",null,null,null,null,null,null,null,{"$f":"IF(C6=0,\" \",\"2.Kultur (%)\")","v":" "},{"$f":"IF(C6=0,\" \",(100/$C$6)*O9)","v":" "},null,{"$f":"IF(C6=0,\" \",'1. Anbaudiversifizierung'!C31)","v":" "}]
[null,"Stillgelegte Fläche mit Blüh-Bienenmischung",{"$f":"'3. Ökologisch wertvolle Fläche'!C17","v":0},"ha"]
[null,"Fläche Miscanthus/durchwachsener Silphie",{"$f":"'3. Ökologisch wertvolle Fläche'!C18","v":0},"ha"]
[null,"Fläche für Leguminosenanbau ohne Pflanzenschutz",{"$f":"'3. Ökologisch wertvolle Fläche'!C19","v":0},"ha",null,null,null,null,null,null,null,{"$f":"IF(C6=0,\" \",\"Restacker-fläche (%)\")","v":" "},{"$f":"IF(C6=0,0,(100/$C$6)*O12)","v":0},null,{"$f":"IF(C6=0,\" \",'4. Zusammenfassung'!C6-'4. Zusammenfassung'!O8-'4. Zusammenfassung'!O9)","v":" "}]
[null,"> 50 %  der Ackerfläche wurde im Vorjahr nicht von mir bewirtschaftet + es hat ein Kulturwechsel stattgefunden",{"$f":"IF(  '1. Anbaudiversifizierung'!C20 = \"Angabe Bitte\", \" \",'1. Anbaudiversifizierung'!C20)","v":" "}]
[]
[null,"Dauergrünland",{"$f":"'1. Anbaudiversifizierung'!C5","v":0},"ha"]
[null,{"$f":"'2. Erhalt von Dauergrünland'!B16","v":"Bewirtschaftung von sensiblem Dauergrünland?"},{"$f":"IF('2. Erhalt von Dauergrünland'!C16=\"Angabe Bitte\",\"/ \",'2. Erhalt von Dauergrünland'!C16)","v":"/ "},null,{"$f":"IF('2. Erhalt von Dauergrünland'!L34=2,'2. Erhalt von Dauergrünland'!L35,\" \")","v":" "},null,null,"Anteil  von Dauergrünland und",{"$f":"'1. Anbaudiversifizierung'!N21","v":{"$error":"#DIV/0!"}},"%",null,{"$f":"IF(C6=0,\" \",\"Acker- fläche\")","v":" "},{"$f":"IF(C6=0,\" \",C6-C8)","v":" "}]
[null,{"$f":"'2. Erhalt von Dauergrünland'!B17","v":"Ist sensibles Dauergrünland umgebrochen?"},{"$f":"IF('2. Erhalt von Dauergrünland'!C17=\"Angabe Bitte\",\"/ \",'2. Erhalt von Dauergrünland'!C17)","v":"/ "},null,{"$f":"IF('2. Erhalt von Dauergrünland'!L34=2,'2. Erhalt von Dauergrünland'!L35,\" \")","v":" "},null,null,"Feldfutter an der landw. Nutzfläche",null,null,null,{"$f":"IF(C6=0,\" \",IF(C8=0,\" \",\"Feld- futter\"))","v":" "},{"$f":"IF(C6=0,\" \",C8)","v":" "}]
[null,{"$f":"'2. Erhalt von Dauergrünland'!B21","v":"Wurde nicht sensibles Dauergrünland  umgebrochen?"},{"$f":"IF('2. Erhalt von Dauergrünland'!C21=\"Angabe Bitte\",\"/ \",'2. Erhalt von Dauergrünland'!C21)","v":"/ "},null,{"$f":"IF('2. Erhalt von Dauergrünland'!L40=2,'2. Erhalt von Dauergrünland'!L41,\" \")","v":" "},null,null,"Anteil Feldfutter an der Ackerfläche",{"$f":"'1. Anbaudiversifizierung'!N34","v":{"$error":"#DIV/0!"}},"%",null,{"$f":"IF(C15=0,\" \",\"Dauerg- rünland\")","v":" "},{"$f":"C15","v":0}]
[null,{"$f":"'2. Erhalt von Dauergrünland'!B22","v":"Wurde dieses mit einer Genehmigung seitens des SER umgebrochen?"},{"$f":"IF('2. Erhalt von Dauergrünland'!C22=\"Angabe Bitte\",\"/ \",'2. Erhalt von Dauergrünland'!C22)","v":"/ "},null,{"$f":"IF('2. Erhalt von Dauergrünland'!L40=2,'2. Erhalt von Dauergrünland'!L41,\" \")","v":" "}]
[]
[null,"1. Anbaudiversifizierung"]
[]
[null,{"$f":"IF(C4=0,\" \",IF('1. Anbaudiversifizierung'!X2=1,'1. Anbaudiversifizierung'!B18,IF('1. Anbaudiversifizierung'!X3=1,'1. Anbaudiversifizierung'!B22,IF('1. Anbaudiversifizierung'!X4=1,'1. Anbaudiversifizierung'!G24,IF('1. Anbaudiversifizierung'!X5= 1,'1. Anbaudiversifizierung'!B28,IF('1. Anbaudiversifizierung'!AA2=1,'1. Anbaudiversifizierung'!B33,IF('1. Anbaudiversifizierung'!AA5=1,'1. Anbaudiversifizierung'!B35,\"!!!!!!!!!!!!!!!!!!!!!!!!!!!!!!!!!!!!!!!!!!!!!!!!!!!!!!!!!! >>>\")))))))","v":" "},null,null,null,null,null,{"$f":"IF('1. Anbaudiversifizierung'!G24=\" \",\" \",'1. Anbaudiversifizierung'!G24)","v":" "},null,null,null,null,null,null,null,"Das sensible Dauergrünland muss unverzüglich in den ursprünglichen Zustand zurückgeführt werden."]
[null,{"$f":"IF('1. Anbaudiversifizierung'!X7=1,'1. Anbaudiversifizierung'!B29,IF('1. Anbaudiversifizierung'!AA3=1,'1. Anbaudiversifizierung'!B34,\" \"))","v":" "},{"$f":"IF('1. Anbaudiversifizierung'!X8=1,'1. Anbaudiversifizierung'!C29,IF('1. Anbaudiversifizierung'!AA4=1,'1. Anbaudiversifizierung'!C34,\" \"))","v":" "}]
[]
[]
[null,"2. Erhalt von Dauergrünland"]
[]
[null,{"$f":"IF(C15=0,\" \",\"Zu Sensibles Dauergrünland\")","v":" "},null,null,null,null,null,null,null,null,null,null,null,null,null,"Das Dauergrünland muss unverzüglich in den ursprünglichen Zustand umgewandelt werden."]
[null,{"$f":"IF('2. Erhalt von Dauergrünland'!L3 = 1,'2. Erhalt von Dauergrünland'!B19:E19,\" \")","v":" "},null,null,null,null,null,null,null,null,null,null,null,null,null,"Sie müssen keine weitern Maßnahmen tätigen, nur den Erhalt ihres bestehenden Dauergrünlandes gewähren und die Bedingungen der Genehmigung einhalten."]
[null,{"$f":"IF(C15=0,\" \",\"Zu Normales Dauergrünland\")","v":" "}]
[null,{"$f":"IF('2. Erhalt von Dauergrünland'!C5=0,'2. Erhalt von Dauergrünland'!B24:E24,IF('2. Erhalt von Dauergrünland'!L17>0,'2. Erhalt von Dauergrünland'!B24:E24, \"Sie haben nichts angegeben.\"))","v":" "}]
[]
[]
[null,"3. Ökologisch wertvolle Flächen"]
[]
[null,{"$f":"'3. Ökologisch wertvolle Fläche'!B22:E22","v":" "},null,null,null,null,null,{"$f":"'3. Ökologisch wertvolle Fläche'!B25","v":" "},{"$f":"'3. Ökologisch wertvolle Fläche'!B26","v":" "},{"$f":"'3. Ökologisch wertvolle Fläche'!C26","v":" "}]
[null,{"$f":"'3. Ökologisch wertvolle Fläche'!B23","v":" "},{"$f":"'3. Ökologisch wertvolle Fläche'!C23:E23","v":" "},null,null,null,{"$f":"IF(J38=\"ha\",1,2)","v":2},{"$f":"'3. Ökologisch wertvolle Fläche'!B27","v":" "},{"$f":"'3. Ökologisch wertvolle Fläche'!C27","v":" "},{"$f":"'3. Ökologisch wertvolle Fläche'!D27","v":" "}]

{"sheet":"Anrechenbare Elemente zur ökoFl","index":4,"n_rows":40,"n_cols":27,"rows_kept":40,"cut":false,"hidden":false,"merged":[[38,13,38,15],[39,13,39,15],[34,13,34,15],[35,13,35,15],[36,13,36,15],[37,13,37,15],[37,7,37,9],[38,7,38,9],[40,7,40,11],[41,7,41,11],[42,7,42,10],[39,7,39,9],[32,7,32,11],[34,7,34,9],[35,7,35,9],[36,7,36,9],[2,10,2,11],[29,7,30,13],[25,7,25,9],[32,13,32,18],[21,2,21,4],[2,2,2,4],[4,2,4,4],[7,2,7,4],[8,2,8,4],[11,2,11,4],[16,2,16,4],[17,2,17,4],[18,2,18,4],[20,2,20,4],[5,2,5,4],[6,2,6,4]]}
[]
[null,"Ökologisch wertvolle Flächen"]
[null,null,"Angewandter  Standardwert",null,null,"Länge (m)","Anzahl","Fläche",null,"Gewichtungsfaktor","Angerechnete Ökofläche",null,"Zulässige Mindestbreite","Zulässige Maximalbreite"]
[null,"Kulturen"]
[null,"Stillgelegte Fläche ohne Blüh-Bienenmischung","-",null,null,null,null,{"$f":"'3. Ökologisch wertvolle Fläche'!C16","v":0},"ha",1,{"$f":"H5*J5","v":0},"ha","-","-",null,null,null,null,null,"Ackerfläche (ha)",{"$f":"'4. Zusammenfassung'!C6","v":0},"ha"]
[null,"Stillgelegte Fläche mit Blüh-Bienenmischung","-",null,null,null,null,{"$f":"'3. Ökologisch wertvolle Fläche'!C17","v":0},"ha",1.5,{"$f":"H6*J6","v":0},"ha","-","-"]
[null,"Fläche Miscanthus/durchwachsener Silphie","-",null,null,null,null,{"$f":"'3. Ökologisch wertvolle Fläche'!C18","v":0},"ha",0.7,0,"ha","-","-",null,null,null,null,null,null,null,null,null,null,null,null,{"$f":"IF('3. Ökologisch wertvolle Fläche'!B23=\" \",0,K24-K26)","v":0}]
[null,"Leguminosenfläche ohne Pflanzenschutz","-",null,null,null,null,{"$f":"'3. Ökologisch wertvolle Fläche'!C19","v":0},"ha",1,0,"ha","-","-",null,null,null,null,null,"Vorhandene Ökofläche (ha)",{"$f":"K24","v":0},"ha"]
[null,"Streifenelemente ohne Pflanzenschutz"]
[null,"Ackerrandstreifen","Breite:",6,"m",0,null,{"$f":"(D10*F10)/10000","v":0},"ha",1.5,{"$f":"H10*J10","v":0},"ha","3 m","20 m"]
[null,"Uferrandstreifen","Breite:",6,"m",0,null,{"$f":"(D11*F11)/10000","v":0},"ha",1.5,{"$f":"H11*J11","v":0},"ha","3 m"]
[null,"Dauerhafte Elemente"]
[null,"Hecken und Gehölzstreifen","Breite:",5,"m",0,null,{"$f":"(D13*F13)/10000","v":0},"ha",2,{"$f":"H13*J13","v":0},"ha","1 m","10 m"]
[null,"Feldgehölz",null,null,null,null,null,0,"ha",1.5,{"$f":"H14*J14","v":0},"ha","-","-"]
[null,"Einzelbäume","Fläche:",20,"m²",null,0,0,"ha",1.5,0,"ha","-","-"]
[null,"Baumreihe","Breite:",5,"m",0,null,{"$f":"(D16*F16)/10000","v":0},"ha",2,0,"ha","-","-"]
[null,"Weiher","-",null,null,null,null,0,"ha",1.5,0,"ha","-","-"]
[null,"Sonstiges"]
[null,"Flächen mit Waldfeldbau","-",null,null,null,null,0,"ha",1,{"$f":"H19*J19","v":0},"ha","-","-"]
[null,"Waldrandstreifen ohne Produktion","Breite:",6,"m",null,null,0,"ha",1.5,{"$f":"J20*H20","v":0},"ha","3 m","10 m"]
[null,"Kurzumtriebwälder ohne Pflanzenschutz","-",null,null,null,null,0,"ha",0.3,0,"ha","-","-"]
[null,"Zwischensaat/Untersaat ohne Pflanzenschutz","-",null,null,null,null,0,"ha",0.3,0,"ha","-","-"]
[]
[null,null,null,null,null,null,null,"Summe an vorhandener  Ökofläche:",null,null,{"$f":"K5+K6+K7+K8+K10+K11+K13+K14+K15+K16+K17+K19+K20+K21+K22","v":0},"ha","Anteilig (%):",{"$f":"(100/U5)*K24","v":{"$error":"#DIV/0!"}}]
[]
[null,null,null,null,null,null,null,"Benötigte  Ökofläche:",null,null,{"$f":"'4. Zusammenfassung'!B38","v":" "},"ha"]
[]
[null,null,null,null,null,null,null,null,null,"Fehlende Ökofläche:",{"$f":"IF((AA7>0),0,AA7)","v":0},"ha"]
[]
[null,"Ackerfläche (ha)",{"$f":"'4. Zusammenfassung'!C6","v":0},null,null,null,null,{"$f":"IF('4. Zusammenfassung'!B37=\" \",\" \",IF(K28<0,\"Ihre aktuelle Ökofläche ist nicht ausreichend. Sie müssen Ihre Ackerfläche reduzieren oder eine Anbaumassnahme, die Ihnen angerechnet werden kann, anwenden.\",\"Ihre Ökofläche ist ausreichend\"))","v":" "},null,null,null,null,null,null,null,null,null,null,null,null,null,"Ihre aktuelle  Ökofläche ist nicht ausreichend, Sie müssen Ihre Ackerfläche reduzieren oder eine Baumaßnahme die ihnen angerechnet werden kann, anwenden"]
[null,"Benötigte ökologisch wertvolle Fläche (ha)",{"$f":"C30*0.05","v":0}]
[]
[null,null,null,null,null,null,null,{"$f":"IF(K28>=0,\" \",\"Mögliche ackerbauliche Maßnahmen\")","v":" "},null,null,null,null,null,{"$f":"IF(K28>=0,\" \",\"Mögliche Maßnahmen: Landschaftselemente (Orientierungswerte)\")","v":" "}]
[]
[null,null,null,null,null,null,null,{"$f":"IF(K28>=0,\" \",\"Reduktion Ackerfläche auf:\")","v":" "},null,null,{"$f":"IF(K28>=0,\" \",'1. Anbaudiversifizierung'!C7+(('Anrechenbare Elemente zur ökoFl'!K28/5)*100))","v":" "},{"$f":"IF($K$28>=0,\" \",\"ha\")","v":" "},null,{"$f":"IF(K28>=0,\" \",\"Hecken und Gehölzstreifen:\")","v":" "},null,null,{"$f":"IF(K28>=0,\" \",(K28*-1)/2)","v":" "},{"$f":"IF($K$28>=0,\" \",\"ha\")","v":" "},{"$f":"IF(K28>=0,\" \",(Q35*10000)/5)","v":" "},{"$f":"IF($K$28>=0,\" \",\"m\")","v":" "}]
[null,null,null,null,null,null,null,{"$f":"IF(K28>=0,\" \",\"Leguminosenanbaufläche:\")","v":" "},null,null,{"$f":"IF(K28>=0,\" \",(K28*-1))","v":" "}," ",null,{"$f":"IF(K28>=0,\" \",\"Feldgehölz:\")","v":" "},null,null,{"$f":"IF(K28>=0,\" \",(K28*-1)/1.5)","v":" "}," "]
[null,null,null,null,null,null,null,{"$f":"IF(K28>=0,\" \",\"Stilllegungsfläche ohne Blüh-Bienen:\")","v":" "},null,null,{"$f":"IF(K28>=0,\" \",(K28*-1)/J5)","v":" "}," ",null,{"$f":"IF(K28>=0,\" \",\"Einzelbäume:\")","v":" "},null,null,{"$f":"IF(K28>=0,\" \",(K28*-1)/J15)","v":" "}," ",{"$f":"IF(K28>=0,\" \",(Q37*10000)/20)","v":" "},{"$f":"IF($K$28>=0,\" \",\"Bäume\")","v":" "}]
[null,null,null,null,null,null,null,{"$f":"IF(K28>=0,\" \",\"Ackerrandstreifen:\")","v":" "},null,null,{"$f":"IF(K28>=0,\" \",(K28*-1)/J10)","v":" "}," ",null,{"$f":"IF(K28>=0,\" \",\"Baumreihe:\")","v":" "},null,null,{"$f":"IF(K28>=0,\" \",(K28*-1)/J16)","v":" "}," ",{"$f":"IF(K28>=0,\" \",(Q38*10000)/5)","v":" "},{"$f":"IF($K$28>=0,\" \",\"m\")","v":" "}]
[null,null,null,null,null,null,null,{"$f":"IF(K28>=0,\" \",\"Uferrandstreifen:\")","v":" "},null,null,{"$f":"IF(K28>=0,\" \",(K28*-1)/J11)","v":" "}," ",null,{"$f":"IF(K28>=0,\" \",\"Kurzumtriebswälder:\")","v":" "},null,null,{"$f":"IF(K28>=0,\" \",(K28*-1)/J21)","v":" "}," "]
[null,null,null,null,null,null,null,{"$f":"IF(K28>=0,\" \",\"Zwischensaat und Untersaat:\")","v":" "},null,null,{"$f":"IF(K28>=0,\" \",(K28*-1)/J22)","v":" "}," ",null,null,null,null,null,null,null,{"$f":"IF(K28>=0,\" \",\"Weiher:\")","v":" "},{"$f":"IF(K28>=0,\" \",(K28*-1)/J17)","v":" "},{"$f":"IF($K$28>=0,\" \",\"ha\")","v":" "}]

{"sheet":"Anpassung der ökoFl","index":5,"n_rows":28,"n_cols":21,"rows_kept":28,"cut":false,"hidden":false,"merged":[[6,8,6,11],[7,12,7,13],[7,14,7,15],[3,5,3,11],[23,5,23,7],[25,5,25,7],[26,5,26,7],[6,2,6,7],[13,5,13,7],[16,5,16,7],[21,5,21,7],[22,5,22,7],[7,5,7,7],[9,5,9,7],[11,5,11,7],[10,5,10,7],[12,5,12,7]]}
[]
[]
[null,"Ackerfläche:",{"$f":"'4. Zusammenfassung'!C6","v":0},"ha"]
[null,"Summe an vorhandener  Ökofläche:",{"$f":"'Anrechenbare Elemente zur ökoFl'!K24","v":0},"ha",null,"Saldo nach den zusätzlich getroffenen Maßnahmen:",null,null,null,null,null,null,{"$f":"O28-C5","v":{"$error":"#VALUE!"}},"ha"]
[null,"Benötigte  Ökofläche:",{"$f":"'Anrechenbare Elemente zur ökoFl'!K26","v":" "},"ha"]
[]
[null,null,"Bestand",null,null,null,null,null,"Eingabe"]
[null,null,"Angerechnete Ökofläche",null,"Gewichtungs- Faktor","Angewandter  Standardwert",null,null,"Länge (m)","Anzahl","Fläche",null,"zusätzliche Ökofläche",null,"Kumulierte  Ökofläche "]
[null,"Kulturen"]
[null,"Stilllegungsfläche ohne Blüh-Bienenmischung",{"$f":"'Anrechenbare Elemente zur ökoFl'!K5","v":0},{"$f":"'Anrechenbare Elemente zur ökoFl'!L5","v":"ha"},1,"-",null,null,null,null,0,"ha",{"$f":"E10*K10","v":0},"ha",{"$f":"C10+M10","v":0},"ha",null,null,null,"Ackerfläche (ha)",{"$f":"C3","v":0}]
[null,"Stilllegungsfläche mit Blüh-Bienenmischung",{"$f":"'Anrechenbare Elemente zur ökoFl'!K6","v":0},{"$f":"'Anrechenbare Elemente zur ökoFl'!L6","v":"ha"},1.5,"-",null,null,null,null,0,"ha",{"$f":"E11*K11","v":0},"ha",{"$f":"C11+M11","v":0},"ha"]
[null,"Miscanthus/durchwachsener Silphie",{"$f":"'Anrechenbare Elemente zur ökoFl'!K7","v":0},{"$f":"'Anrechenbare Elemente zur ökoFl'!L7","v":"ha"},0.7,"-",null,null,null,null,0,"ha",{"$f":"E12*K12","v":0},"ha",{"$f":"C12+M12","v":0},"ha",null,null,null,"Benötigte  Ökofläche (ha):",{"$f":"C5","v":" "}]
[null,"Leguminosenfläche ohne Pflanzenschutz",{"$f":"'Anrechenbare Elemente zur ökoFl'!K8","v":0},{"$f":"'Anrechenbare Elemente zur ökoFl'!L8","v":"ha"},1,"-",null,null,null,null,0,"ha",{"$f":"E13*K13","v":0},"ha",{"$f":"C13+M13","v":0},"ha"]
[null,"Streifenelemente ohne Pflanzenschutz",null,null,null,null,null,null,null,null,null,null,null,null,null,null,null,null,null,"Summe an vorhandener  Ökofläche (ha):",{"$f":"C4","v":0}]
[null,"Ackerrandstreifen",{"$f":"'Anrechenbare Elemente zur ökoFl'!K10","v":0},{"$f":"'Anrechenbare Elemente zur ökoFl'!L10","v":"ha"},1.5,"Breite:",6,"m",0,null,{"$f":"(G15*I15)/10000","v":0},"ha",0,"ha",0,"ha",null,null,null,"Zusätzliche Ökofläche (ha)",{"$f":"M28","v":0}]
[null,"Uferrandstreifen",{"$f":"'Anrechenbare Elemente zur ökoFl'!K11","v":0},{"$f":"'Anrechenbare Elemente zur ökoFl'!L11","v":"ha"},1.5,"Breite:",6,"m",0,null,{"$f":"(G16*I16)/10000","v":0},"ha",0,"ha",0,"ha",null,null,null,"Kumulierte  Ökofläche (ha):",{"$f":"O28","v":0}]
[null,"Dauerhafte Elemente"]
[null,"Hecken und Gehölzstreifen",{"$f":"'Anrechenbare Elemente zur ökoFl'!K13","v":0},{"$f":"'Anrechenbare Elemente zur ökoFl'!L13","v":"ha"},2,"Breite:",5,"m",0,null,{"$f":"(G18*I18)/10000","v":0},"ha",0,"ha",0,"ha"]
[null,"Feldgehölz",{"$f":"'Anrechenbare Elemente zur ökoFl'!K14","v":0},{"$f":"'Anrechenbare Elemente zur ökoFl'!L14","v":"ha"},1.5,null,null,null,null,null,0,"ha",0,"ha",0,"ha"]
[null,"Einzelbäume",{"$f":"'Anrechenbare Elemente zur ökoFl'!K15","v":0},{"$f":"'Anrechenbare Elemente zur ökoFl'!L15","v":"ha"},1.5,"Fläche:",20,"m²",null,0,0,"ha",0,"ha",0,"ha"]
[null,"Baumreihe",{"$f":"'Anrechenbare Elemente zur ökoFl'!K16","v":0},{"$f":"'Anrechenbare Elemente zur ökoFl'!L16","v":"ha"},2,"Breite:",5,"m",0,null,{"$f":"(G21*I21)/10000","v":0},"ha",0,"ha",0,"ha"]
[null,"Weiher",{"$f":"'Anrechenbare Elemente zur ökoFl'!K17","v":0},{"$f":"'Anrechenbare Elemente zur ökoFl'!L17","v":"ha"},1.5,"-",null,null,null,null,0,"ha",0,"ha",0,"ha"]
[null,"Sonstiges"]
[null,"Flächen mit Waldfeldbau",{"$f":"'Anrechenbare Elemente zur ökoFl'!K19","v":0},{"$f":"'Anrechenbare Elemente zur ökoFl'!L19","v":"ha"},1,"-",null,null,null,null,0,"ha",0,"ha",0,"ha"]
[null,"Waldrandstreifen ohne Produktion",{"$f":"'Anrechenbare Elemente zur ökoFl'!K20","v":0},{"$f":"'Anrechenbare Elemente zur ökoFl'!L20","v":"ha"},1.5,"Breite:",6,"m",0,null,0,"ha",{"$f":"E25*K25","v":0},"ha",0,"ha"]
[null,"Kurzumtriebwälder ohne Pflanzenschutz",{"$f":"'Anrechenbare Elemente zur ökoFl'!K21","v":0},{"$f":"'Anrechenbare Elemente zur ökoFl'!L21","v":"ha"},0.3,"-",null,null,null,null,0,"ha",0,"ha",0,"ha"]
[null,"Zwischensaat/Untersaat ohne Pflanzenschutz",{"$f":"'Anrechenbare Elemente zur ökoFl'!K22","v":0},{"$f":"'Anrechenbare Elemente zur ökoFl'!L22","v":"ha"},0.3,"-",null,null,null,null,0,"ha",0,"ha",0,"ha"]
[null,null,null,null,null,null,null,null,null,null,null,"Summe",{"$f":"M10+M11+M12+M13+M15+M16+M18+M19+M20+M21+M22+M24+M25+M26+M27","v":0},"ha",{"$f":"O10+O11+O12+O13+O15+O16+O18+O19+O20+O21+O22+O24+O25+O26+O27","v":0},"ha"]